bitfinex-derivatives/quotes_ETHF0:USTF0_20251006
["timestamp","ask_amount","ask_price","bid_price","bid_amount"]
[1759710131811,0.3072,4538.4,4538.3,3.22485212]
[1759710132121,6.13779138,4538.4,4538.3,0.01705212]
[1759710132412,6.13779138,4538.4,4538.3,0.01916532]
[1759710133013,0.82873,4538.0,4537.9,0.02203687]
[1759710133224,3.868,4538.0,4537.9,0.02203687]
[1759710133417,6.75410124,4538.0,4537.9,0.02203687]
[1759710133718,6.75510124,4538.0,4537.9,0.02203687]
[1759710133909,11.75697615,4538.0,4537.9,0.02488426]
[1759710134109,0.39654,4537.9,4536.5,3.2078]
[1759710134306,0.3072,4536.7,4536.0,3.5328]
[1759710134511,0.229,4536.6,4536.0,3.5328]
[1759710134713,0.229,4536.6,4535.4,0.58688792]
[1759710134714,3.2078,4536.3,4535.4,0.325]
[1759710134912,0.23,4536.2,4535.4,0.325]
[1759710135110,3.64,4537.0,4536.0,0.1334]
[1759710135309,0.125,4537.5,4536.5,0.4425]
[1759710135507,0.3072,4537.6,4536.6,0.325]
[1759710135706,0.43407491,4538.0,4536.6,0.325]
[1759710135916,0.231,4537.9,4536.9,3.2078]
[1759710136114,0.30907491,4538.0,4537.6,0.325]
[1759710136310,0.231,4537.9,4537.6,0.325]
[1759710136517,0.00187491,4538.0,4537.6,0.325]
[1759710136813,0.3072,4537.7,4537.1,0.325]
[1759710137018,0.231,4537.6,4537.1,0.325]
[1759710137219,0.00187491,4538.0,4537.5,3.2078]
[1759710137406,0.231,4537.9,4537.6,0.325]
[1759710137609,0.231,4537.9,4537.6,0.3165]
[1759710137811,0.00187491,4538.0,4537.7,5.0]
[1759710138018,0.00187491,4538.0,4537.5,3.2805]
[1759710138019,0.00187491,4538.0,4537.9,0.3165]
[1759710138320,0.23287491,4538.0,4537.9,0.3165]
[1759710138917,0.3252,4537.9,4537.6,0.3165]
[1759710140220,0.3252,4537.9,4537.5,3.2078]
[1759710140415,0.3252,4537.9,4537.1,0.3165]
[1759710140416,2.92536651,4537.8,4537.1,0.3165]
[1759710140616,0.3252,4537.4,4536.8,3.2078]
[1759710140921,0.3252,4536.9,4536.3,3.2078]
[1759710141120,0.3252,4536.7,4536.3,3.2078]
[1759710141422,0.231,4536.8,4536.4,0.3165]
[1759710141613,0.231,4536.7,4536.4,0.3165]
[1759710142022,0.5562,4536.7,4536.3,3.2078]
[1759710142218,0.231,4536.7,4536.4,0.3165]
[1759710142422,3.2078,4537.3,4536.5,0.1334]
[1759710142626,0.231,4537.2,4536.5,0.1334]
[1759710142823,0.3252,4537.1,4536.4,0.3165]
[1759710143124,2.99814869,4537.0,4536.4,0.3165]
[1759710143324,2.99814869,4537.0,4536.3,3.2078]
[1759710143524,0.3252,4536.9,4536.3,3.2078]
[1759710143819,0.3252,4536.7,4536.3,3.2078]
[1759710144024,2.89979348,4536.8,4536.3,3.2078]
[1759710144225,0.231,4536.7,4536.5,0.1175]
[1759710144517,0.231,4536.6,4536.3,3.2078]
[1759710144824,0.3252,4535.9,4535.8,3.2078]
[1759710145120,0.2448,4535.4,4534.1,0.3165]
[1759710145323,2.91137548,4535.9,4535.1,0.3165]
[1759710145324,3.2078,4535.7,4535.1,0.3165]
[1759710145627,3.2078,4535.7,4535.0,3.3436]
[1759710145816,0.231,4535.6,4535.1,0.3165]
[1759710146425,0.39675,4535.4,4535.0,0.1358]
[1759710146631,0.39675,4535.4,4535.0,0.13757078]
[1759710146819,0.39677,4535.2,4535.1,0.3165]
[1759710147021,0.62777,4535.2,4535.1,0.3165]
[1759710147422,0.231,4535.2,4535.1,0.3165]
[1759710147828,3.2078,4535.7,4535.1,0.3165]
[1759710148124,0.39676,4535.4,4535.0,0.13757078]
[1759710148322,0.39676,4535.3,4535.1,0.3165]
[1759710148522,0.231,4535.2,4535.1,0.3165]
[1759710148925,3.1996025,4535.3,4535.1,0.3165]
[1759710149127,0.231,4535.2,4535.1,0.3165]
[1759710149323,0.231,4535.2,4535.0,0.00177078]
[1759710149931,3.32322167,4535.1,4535.0,0.00177078]
[1759710150128,3.56802167,4535.1,4535.0,0.00177078]
[1759710150523,0.0648,4535.0,4533.8,0.3165]
[1759710150724,0.39689,4533.9,4533.5,3.3436]
[1759710150931,3.11045515,4533.6,4533.0,0.1358]
[1759710151132,2.71354515,4533.6,4533.0,0.4523]
[1759710151434,2.85232277,4533.5,4533.0,0.1358]
[1759710151618,2.85457389,4533.5,4533.0,0.13754851]
[1759710152021,0.00225112,4533.5,4533.4,0.3165]
[1759710152227,3.28753058,4533.4,4533.1,0.3165]
[1759710152426,0.39695,4533.2,4533.0,0.00174851]
[1759710152626,0.231,4533.1,4533.0,0.00174851]
[1759710152828,3.12026379,4533.1,4533.0,0.00174851]
[1759710153026,3.36526379,4533.1,4533.0,0.00174851]
[1759710153830,0.39707,4531.9,4531.2,3.2078]
[1759710154028,2.71354515,4531.6,4531.5,0.3344]
[1759710154224,2.82139405,4531.8,4531.6,0.3344]
[1759710154427,2.71354515,4531.9,4531.2,0.3344]
[1759710154428,3.76213653,4531.6,4531.2,0.3344]
[1759710154621,0.231,4531.5,4530.7,0.3344]
[1759710154833,2.91284653,4531.8,4531.6,0.3344]
[1759710155027,3.2078,4533.2,4531.6,0.3344]
[1759710155225,3.2078,4533.2,4531.5,0.1308]
[1759710155226,2.91284653,4532.9,4532.4,3.2078]
[1759710155526,0.232,4532.8,4532.4,3.2078]
[1759710155730,0.00225112,4533.5,4532.6,0.3344]
[1759710155930,0.00225112,4533.5,4532.5,5.1308]
[1759710155931,0.00225112,4533.5,4533.1,0.3344]
[1759710156130,3.04905653,4533.4,4532.5,0.3344]
[1759710156328,2.81705653,4533.4,4532.6,0.3344]
[1759710156528,0.00225112,4533.5,4533.0,3.3386]
[1759710157027,0.232,4533.4,4533.1,0.39695]
[1759710157229,0.232,4533.4,4533.3,0.3344]
[1759710157426,3.2078,4534.6,4533.6,0.3344]
[1759710157622,3.2078,4534.6,4533.5,0.39692]
[1759710157623,3.2078,4534.6,4534.0,3.2078]
[1759710157829,0.3378,4534.4,4534.0,3.2078]
[1759710158038,3.41936672,4534.5,4533.0,0.1308]
[1759710158039,0.1353,4534.0,4533.3,3.2078]
[1759710158232,0.5708,4533.9,4533.3,3.5422]
[1759710158427,34.5383,4534.5,4533.0,0.1308]
[1759710158428,3.2078,4534.8,4533.9,0.3344]
[1759710158628,0.233,4534.7,4534.1,0.3344]
[1759710158828,0.233,4534.7,4534.0,0.0668]
[1759710158829,0.233,4534.6,4534.5,0.3344]
[1759710159532,0.3378,4536.1,4534.6,0.3344]
[1759710159732,3.2078,4537.1,4535.6,3.2078]
[1759710159733,0.3378,4536.4,4535.6,3.2078]
[1759710159927,3.16461583,4536.4,4535.7,0.3344]
[1759710160129,0.233,4536.3,4535.6,3.2078]
[1759710160524,2.83971521,4536.2,4535.7,0.3344]
[1759710160726,0.3378,4537.1,4536.1,3.2078]
[1759710160935,0.233,4537.0,4536.3,3.2078]
[1759710161133,0.3378,4536.8,4536.3,3.209719]
[1759710161334,0.3378,4536.9,4536.3,0.001919]
[1759710161538,0.3378,4536.4,4536.3,0.001919]
[1759710161732,2.88535217,4536.8,4536.4,0.3344]
[1759710162034,2.88535217,4536.8,4536.3,0.001919]
[1759710162035,0.5708,4536.7,4536.5,0.3344]
[1759710162232,0.5708,4536.7,4536.3,0.336319]
[1759710162532,0.3378,4536.7,4536.4,0.3344]
[1759710162738,0.233,4536.6,4536.4,0.3344]
[1759710162934,0.233,4536.6,4536.3,0.001919]
[1759710163129,0.00239042,4537.0,4536.3,0.001919]
[1759710163332,0.233,4536.9,4536.3,0.001919]
[1759710163538,0.233,4536.8,4536.3,0.001919]
[1759710164036,0.3378,4536.7,4536.3,0.001919]
[1759710164331,0.1353,4536.5,4536.3,0.001919]
[1759710164527,0.5708,4536.4,4536.3,0.001919]
[1759710167628,0.3378,4536.4,4536.3,0.001919]
[1759710167829,0.33959042,4537.0,4536.4,0.33]
[1759710168033,0.233,4536.9,4536.4,0.33]
[1759710168238,0.233,4536.9,4536.3,3.209719]
[1759710168239,3.06610646,4536.9,4536.3,3.209719]
[1759710168542,0.5702,4536.8,4536.4,0.33]
[1759710168836,0.233,4536.8,4536.3,0.331919]
[1759710169534,0.5702,4536.7,4536.4,0.33]
[1759710169734,0.3372,4536.6,4536.3,0.331919]
[1759710169932,3.4408,4536.7,4536.3,0.001919]
[1759710170132,0.3372,4538.2,4536.7,0.33]
[1759710170331,0.3372,4538.6,4537.8,3.5378]
[1759710170537,0.3592,4537.9,4537.8,3.2078]
[1759710171139,3.20034432,4537.9,4537.8,3.2078]
[1759710171638,0.3592,4537.9,4537.8,3.2078]
[1759710171835,0.022,4537.9,4537.8,3.5378]
[1759710172035,0.255,4537.9,4537.8,3.5378]
[1759710172436,0.25755136,4537.9,4537.8,3.5378]
[1759710173139,0.25755136,4537.9,4537.8,8.5378]
[1759710173332,0.02455136,4537.9,4537.8,8.5378]
[1759710173942,0.3372,4539.6,4538.7,0.33]
[1759710174143,0.99062,4541.3,4538.7,0.33]
[1759710174144,0.5702,4539.4,4539.3,3.2078]
[1759710174331,3.11117371,4540.7,4539.3,3.2078]
[1759710174541,0.1347,4541.0,4539.8,3.2078]
[1759710174542,0.3372,4539.9,4539.8,3.2078]
[1759710174733,0.5702,4539.9,4539.8,3.2078]
[1759710175431,0.3372,4539.9,4539.8,3.2078]
[1759710175637,3.3425,4540.5,4539.8,3.5378]
[1759710175638,0.3372,4540.4,4539.8,3.5378]
[1759710175834,3.3425,4541.0,4540.0,0.33]
[1759710176142,3.37294087,4540.9,4540.8,3.2078]
[1759710176638,3.37294087,4540.9,4540.2,3.2078]
[1759710176843,0.3372,4540.4,4540.2,3.2078]
[1759710177143,0.5702,4540.3,4540.2,3.2078]
[1759710179249,0.5702,4540.3,4540.0,0.00156419]
[1759710179443,0.233,4540.3,4540.0,0.00156419]
[1759710179641,0.5702,4540.3,4540.0,0.00156419]
[1759710179940,0.3372,4540.9,4540.0,0.33156419]
[1759710180149,0.232,4540.8,4540.4,3.2078]
[1759710180343,2.92474427,4540.9,4540.4,3.2078]
[1759710180644,2.89812681,4540.7,4540.4,3.60411]
[1759710180941,0.00167314,4541.0,4540.4,3.2078]
[1759710181140,0.00167314,4541.0,4540.9,3.5378]
[1759710181338,0.23467314,4541.0,4540.9,3.5378]
[1759710181842,0.23467314,4541.0,4540.9,3.2078]
[1759710182034,0.47357314,4541.0,4540.4,3.2078]
[1759710182236,0.232,4540.9,4540.4,3.2078]
[1759710182540,0.4719,4540.5,4540.4,3.2078]
[1759710182747,0.86821,4540.5,4540.4,3.2078]
[1759710183046,0.39634,4540.2,4540.0,0.00156419]
[1759710183344,0.5692,4540.1,4540.0,0.00156419]
[1759710184134,3.39811802,4540.1,4540.0,0.00156419]
[1759710184546,8.39811802,4540.1,4540.0,0.00156419]
[1759710185936,3.16611802,4540.1,4540.0,3.20936419]
[1759710186136,3.39811802,4540.1,4540.0,3.20936419]
[1759710186647,3.39811802,4540.1,4540.0,0.00156419]
[1759710188751,3.16611802,4540.1,4540.0,0.00156419]
[1759710188949,3.16611802,4540.1,4540.0,3.20936419]
[1759710189148,3.39811802,4540.1,4540.0,3.53936419]
[1759710189346,0.3372,4540.4,4540.0,3.53936419]
[1759710189646,0.5692,4540.1,4540.0,3.20936419]
[1759710192347,0.3372,4540.9,4540.1,0.33]
[1759710192552,0.232,4540.8,4540.1,0.33]
[1759710192748,0.232,4540.8,4540.7,0.33]
[1759710193056,34.50737314,4541.0,4540.7,0.33]
[1759710193057,0.00167314,4541.0,4540.7,0.33]
[1759710193351,0.3372,4540.8,4540.6,3.2078]
[1759710193755,0.00167314,4541.0,4540.6,3.2078]
[1759710193756,0.232,4540.7,4540.6,3.2078]
[1759710194459,0.00167314,4541.0,4540.7,0.33]
[1759710194646,0.232,4540.9,4540.7,0.33]
[1759710194955,0.3372,4540.8,4540.6,3.2078]
[1759710195250,0.39633,4540.3,4540.1,3.2078]
[1759710195443,0.1347,4540.5,4540.0,0.00156419]
[1759710195649,0.3372,4540.3,4540.1,0.33]
[1759710195859,0.3372,4540.2,4540.0,0.00156419]
[1759710196150,0.3372,4540.3,4540.0,0.00156419]
[1759710196347,0.39633,4540.2,4540.0,0.00156419]
[1759710196549,0.39633,4540.2,4539.6,3.2078]
[1759710196550,0.3372,4539.7,4539.6,3.2078]
[1759710196849,0.3372,4539.2,4539.1,3.2078]
[1759710197149,0.232,4539.2,4538.6,3.2078]
[1759710197345,0.232,4539.1,4538.6,3.2078]
[1759710197547,0.3168,4538.9,4538.7,0.3326]
[1759710197851,0.232,4538.8,4538.7,0.3326]
[1759710198051,0.5488,4538.8,4538.6,3.2078]
[1759710198355,0.5488,4538.8,4538.6,3.20954389]
[1759710198550,0.3168,4538.7,4538.6,3.20954389]
[1759710198855,3.2078,4539.4,4538.7,0.3326]
[1759710198856,0.39645,4538.9,4538.7,0.3326]
[1759710199056,0.3168,4538.7,4538.6,3.20954389]
[1759710199742,0.5488,4538.7,4538.6,3.20954389]
[1759710200346,3.75329816,4538.7,4538.6,0.00174389]
[1759710200548,8.75329816,4538.7,4538.6,0.00174389]
[1759710201553,43.12329816,4538.7,4538.6,0.00174389]
[1759710201753,43.12329816,4538.7,4538.6,4.389e-05]
[1759710202255,0.39663,4536.8,4536.7,0.3326]
[1759710202458,0.71345,4536.7,4536.5,3.2078]
[1759710202655,0.3168,4536.7,4536.6,0.3326]
[1759710202855,0.232,4536.8,4536.6,0.3326]
[1759710203150,0.63091933,4536.8,4536.6,0.00247123]
[1759710203356,0.3168,4536.7,4536.6,0.00247123]
[1759710203957,0.3168,4536.7,4536.6,0.33507123]
[1759710204751,0.3168,4536.7,4536.6,0.00247123]
[1759710208162,0.5478,4536.7,4536.6,0.00247123]
[1759710212567,3.34867071,4536.7,4536.6,0.00247123]
[1759710213365,3.34867071,4536.7,4536.6,1.23e-06]
[1759710213766,8.34867071,4536.7,4536.6,1.23e-06]
[1759710215265,0.83719,4535.0,4534.9,3.2078]
[1759710215469,1.06819,4535.0,4534.9,3.2078]
[1759710216266,0.1253,4536.0,4535.0,0.1267]
[1759710216472,0.39673,4535.7,4535.1,0.3077]
[1759710216668,0.39674,4535.6,4535.0,0.1267]
[1759710216970,0.71185,4535.5,4535.1,0.3077]
[1759710217170,0.71185,4535.5,4535.0,0.1267]
[1759710217171,0.231,4535.4,4535.0,0.1267]
[1759710217369,0.39678,4535.1,4534.9,3.210065]
[1759710217666,0.5461,4535.0,4534.9,3.210065]
[1759710218769,0.39678,4535.2,4534.9,3.517765]
[1759710219074,0.3151,4535.0,4534.9,3.517765]
[1759710219269,0.231,4535.1,4534.9,3.210065]
[1759710219472,0.3151,4535.8,4535.1,0.3077]
[1759710219668,0.3151,4536.3,4535.5,0.0774]
[1759710219967,0.231,4536.2,4535.6,0.3077]
[1759710220166,0.3967,4536.1,4535.5,0.0774]
[1759710220772,0.39671,4535.9,4535.6,0.3077]
[1759710221068,3.2078,4536.4,4535.6,0.3077]
[1759710221273,0.231,4536.3,4535.6,0.3077]
[1759710221472,0.3967,4536.1,4535.6,0.3077]
[1759710222173,0.39672,4535.9,4535.6,0.3077]
[1759710222473,0.39672,4535.9,4535.5,0.0774]
[1759710222773,0.39673,4535.7,4535.6,0.3077]
[1759710223268,0.39673,4535.7,4535.4,3.2078]
[1759710223269,0.71185,4535.5,4535.4,3.2078]
[1759710223571,0.39674,4535.6,4535.5,0.3077]
[1759710223871,0.39675,4535.5,4535.4,3.5155]
[1759710224071,0.94285,4535.5,4535.4,3.5155]
[1759710224673,0.5461,4535.5,4535.4,3.5155]
[1759710225070,0.231,4535.6,4535.4,3.2078]
[1759710225275,0.94284,4535.6,4535.4,3.2078]
[1759710225670,0.94284,4535.6,4535.4,3.5155]
[1759710225872,0.62774,4535.6,4535.4,3.5155]
[1759710226174,0.231,4535.6,4535.4,3.2078]
[1759710226365,0.39674,4535.6,4535.5,0.3077]
[1759710226770,0.94184,4535.6,4535.5,0.3077]
[1759710226969,0.62674,4535.6,4535.4,3.2078]
[1759710227172,0.3151,4535.5,4535.4,3.2078]
[1759710227577,0.4394,4535.5,4535.4,3.2078]
[1759710227877,0.4394,4535.5,4534.9,3.79695292]
[1759710227878,0.3333,4535.4,4534.9,3.79695292]
[1759710228075,0.1243,4535.5,4534.9,3.79695292]
[1759710228277,0.39678,4535.1,4535.0,0.58688792]
[1759710228477,0.73008,4535.1,4535.0,0.58688792]
[1759710228872,0.39678,4535.1,4534.9,3.210065]
[1759710229071,0.5633,4535.0,4534.9,3.210065]
[1759710230175,0.23,4535.0,4534.9,3.537065]
[1759710230375,0.23,4535.0,4534.9,4.12395292]
[1759710231175,0.5633,4535.0,4534.9,3.79695292]
[1759710231376,0.6876,4535.0,4534.9,3.79695292]
[1759710231568,0.5633,4535.0,4534.9,3.79695292]
[1759710232174,0.3333,4535.0,4534.9,3.79695292]
[1759710232372,0.5633,4535.0,4534.9,3.79695292]
[1759710232575,0.6876,4535.0,4534.9,3.210065]
[1759710232771,1.1426,4535.0,4534.9,3.210065]
[1759710233680,1.0183,4535.0,4534.9,3.960565]
[1759710234378,0.39677,4535.2,4534.9,3.633565]
[1759710234584,0.3333,4535.9,4535.1,0.327]
[1759710234779,0.3333,4536.3,4535.7,0.327]
[1759710235078,0.23,4536.3,4536.1,0.327]
[1759710235282,3.2078,4536.4,4536.0,0.71018792]
[1759710235478,0.62668,4536.3,4536.0,0.71018792]
[1759710235679,0.62668,4536.3,4536.2,0.327]
[1759710235976,0.23,4536.3,4536.2,0.327]
[1759710236378,0.23,4536.3,4536.2,0.91388792]
[1759710236777,0.23,4536.3,4536.1,3.98656193]
[1759710236976,0.23,4536.3,4536.2,0.327]
[1759710237482,0.33557933,4536.8,4536.2,0.327]
[1759710237684,0.62664,4536.7,4536.6,3.5348]
[1759710237880,0.95994,4536.7,4536.6,3.2078]
[1759710238586,0.39666,4536.5,4536.3,0.58933993]
[1759710238879,0.39665,4536.6,4536.5,0.327]
[1759710239080,0.95995,4536.6,4536.5,3.2078]
[1759710239379,0.23,4536.6,4536.1,1.10576193]
[1759710239580,0.72996,4536.5,4536.4,0.58942955]
[1759710239780,0.72996,4536.5,4536.4,3.79722955]
[1759710240282,0.23,4536.6,4536.5,0.327]
[1759710240478,0.5633,4536.6,4536.4,3.79722955]
[1759710240682,0.85426,4536.5,4536.4,3.2078]
[1759710240978,0.3333,4536.7,4536.4,3.2078]
[1759710241178,0.23,4536.6,4536.4,3.2078]
[1759710241384,0.4576,4536.5,4536.4,3.2078]
[1759710242675,0.9126,4536.5,4536.4,3.2078]
[1759710242880,0.9126,4536.5,4536.4,3.4227]
[1759710243282,1.1426,4536.5,4536.4,3.6313]
[1759710243480,0.00227933,4536.8,4536.4,3.9583]
[1759710243783,1.18744,4536.7,4536.6,0.4235]
[1759710243983,0.52096,4536.5,4536.4,3.2078]
[1759710244181,1.18499,4536.1,4535.9,0.5896315]
[1759710244384,1.18499,4536.1,4536.0,0.2149]
[1759710244585,1.41499,4536.1,4536.0,0.2149]
[1759710244887,1.41499,4536.1,4535.9,0.5896315]
[1759710245089,1.18501,4535.9,4535.8,0.5896315]
[1759710245384,1.18503,4535.7,4535.6,0.5896315]
[1759710245586,1.30935,4535.5,4535.4,0.5896315]
[1759710245782,1.30935,4535.5,4534.9,0.5918965]
[1759710245783,1.18508,4535.1,4534.9,0.5918965]
[1759710246088,1.1416,4535.0,4534.9,0.217165]
[1759710246283,1.0173,4535.0,4534.9,0.425765]
[1759710246493,1.0173,4535.0,4534.9,0.752765]
[1759710247389,1.1416,4535.0,4534.9,0.217165]
[1759710247585,1.1416,4535.0,4534.9,0.002265]
[1759710247782,1.1416,4535.0,4534.9,0.217165]
[1759710248186,1.1416,4535.0,4534.9,3.424965]
[1759710249088,1.1416,4535.0,4534.9,3.633565]
[1759710250078,1.0173,4535.0,4534.9,3.633565]
[1759710250278,0.99168,4536.4,4535.6,0.327]
[1759710250279,34.398,4536.2,4535.6,0.327]
[1759710250486,34.398,4536.2,4535.5,0.4235]
[1759710250487,0.5608,4535.9,4535.8,0.2149]
[1759710250682,3.83057685,4535.9,4535.8,0.2149]
[1759710250878,0.39672,4535.8,4535.4,3.5348]
[1759710251082,0.5608,4535.5,4535.4,3.9583]
[1759710251282,0.9126,4535.5,4535.4,3.6313]
[1759710251981,1.30935,4535.5,4535.4,3.6313]
[1759710252182,1.30935,4535.5,4535.4,3.2078]
[1759710252483,0.95756,4535.3,4535.2,0.80497462]
[1759710252682,1.18656,4535.3,4535.2,0.80497462]
[1759710252887,0.7883,4535.2,4535.1,0.59007462]
[1759710253186,0.7883,4535.2,4535.1,0.80497462]
[1759710253383,0.5608,4535.2,4535.1,0.7505]
[1759710253790,0.7898,4535.2,4535.1,0.7505]
[1759710254092,0.9126,4535.0,4534.9,4.20372693]
[1759710254287,0.229,4535.0,4534.9,4.73932693]
[1759710254487,0.7898,4535.0,4534.9,4.73932693]
[1759710255389,0.229,4535.0,4534.9,3.960565]
[1759710255588,0.5623,4535.0,4534.9,4.74712137]
[1759710256382,0.5623,4535.0,4534.9,3.960565]
[1759710256791,0.5623,4535.0,4534.9,4.74711299]
[1759710256992,0.5623,4535.0,4534.9,4.74711426]
[1759710257187,0.5623,4535.0,4534.9,3.960565]
[1759710257688,0.5623,4535.0,4534.9,4.74708084]
[1759710257887,0.7898,4535.0,4534.9,4.74707849]
[1759710258584,1.001,4535.0,4534.9,4.42007849]
[1759710258790,1.1316,4535.0,4534.9,4.42007849]
[1759710259390,1.001,4535.0,4534.9,4.74347849]
[1759710260292,1.1316,4535.0,4534.9,4.42007849]
[1759710260496,0.7587,4534.9,4534.7,0.59009924]
[1759710260698,1.28618,4534.0,4533.9,3.6363]
[1759710260996,1.51518,4534.0,4533.9,0.4285]
[1759710261498,1.51518,4534.0,4533.9,0.2134]
[1759710261693,1.51518,4534.0,4533.9,0.00265776]
[1759710262295,1.51518,4534.0,4533.9,0.21605776]
[1759710262296,3.72746145,4534.0,4533.9,0.21605776]
[1759710262496,4.17816145,4534.0,4533.9,0.43115776]
[1759710262798,4.38936145,4534.0,4533.9,0.00265776]
[1759710262988,7.11200214,4534.0,4533.9,0.00265776]
[1759710263391,7.11200214,4534.0,4533.9,7.76e-06]
[1759710263392,12.11200214,4534.0,4533.9,7.76e-06]
[1759710263792,0.96046,4533.0,4532.9,0.02206118]
[1759710264000,1.51526,4533.0,4532.9,0.02206118]
[1759710264189,4.34338744,4533.0,4532.9,0.02206118]
[1759710264791,4.34522627,4533.0,4532.9,0.02446062]
[1759710265495,38.74922627,4533.0,4532.9,0.02446062]
[1759710267000,38.75222627,4533.0,4532.9,0.02446062]
[1759710269506,9.11622627,4533.0,4532.9,0.02446062]
[1759710269699,43.75622627,4533.0,4532.9,0.02446062]
[1759710269900,38.35926627,4533.0,4532.9,0.02446062]
[1759710270792,38.35926627,4533.0,4532.9,6.2e-07]
[1759710270793,43.35926627,4533.0,4532.9,6.2e-07]
[1759710271799,43.36126627,4533.0,4532.9,6.2e-07]
[1759710272102,8.71926627,4533.0,4532.9,6.2e-07]
[1759710272505,38.36226627,4533.0,4532.9,0.21340062]
[1759710272700,38.36226627,4533.0,4532.9,6.2e-07]
[1759710272895,38.03646627,4533.0,4532.9,6.2e-07]
[1759710273500,38.03646627,4533.0,4531.9,3.2078]
[1759710273501,0.1306,4532.0,4531.9,3.2078]
[1759710273695,0.82999,4531.6,4531.4,3.2078]
[1759710273898,0.7925,4531.5,4531.4,3.2078]
[1759710274094,0.7925,4531.5,4531.4,3.6363]
[1759710274095,0.537,4531.5,4531.4,3.6363]
[1759710274407,0.229,4531.5,4531.4,3.9597]
[1759710274705,0.7765,4531.5,4531.4,3.96161512]
[1759710275008,1.1183,4531.5,4531.4,3.63821512]
[1759710275298,0.7765,4531.5,4531.4,3.63821512]
[1759710275499,0.7744,4531.5,4531.4,3.97441512]
[1759710275900,0.7744,4531.5,4531.4,3.63821512]
[1759710276297,1.1248,4531.5,4531.4,3.63821512]
[1759710276504,4.4235363,4531.5,4531.4,3.63821512]
[1759710276702,4.0264363,4531.5,4531.4,3.20971512]
[1759710276902,4.4235363,4531.5,4531.4,3.20971512]
[1759710277608,7.14617699,4531.5,4531.4,0.00191512]
[1759710278107,46.56717699,4531.5,4531.4,0.00191512]
[1759710280610,3.7974363,4531.5,4531.4,0.00191512]
[1759710280813,3.7974363,4531.5,4531.4,0.43601512]
[1759710281111,0.1306,4532.0,4531.4,3.64381512]
[1759710281311,0.8958,4531.5,4531.4,3.64381512]
[1759710281510,1.1248,4531.5,4531.4,3.64381512]
[1759710281715,0.7744,4531.5,4531.4,3.98001512]
[1759710282009,0.229,4531.5,4531.4,3.98001512]
[1759710282208,0.1306,4532.0,4531.4,3.98001512]
[1759710282509,0.3276,4532.1,4531.9,0.3362]
[1759710282721,0.229,4532.0,4531.9,0.7703]
[1759710282927,0.8958,4531.5,4531.4,3.20971512]
[1759710283225,1.1248,4531.5,4531.4,3.42431512]
[1759710283421,1.1248,4531.5,4531.4,3.64381512]
[1759710283723,0.229,4531.5,4531.4,3.98001512]
[1759710283922,0.39707,4531.9,4531.4,3.98001512]
[1759710284117,0.7655,4531.5,4531.4,3.64381512]
[1759710284314,1.1248,4531.5,4531.4,3.64381512]
[1759710284517,0.5454,4531.5,4531.4,3.98001512]
[1759710284717,0.7744,4531.5,4531.4,3.98001512]
[1759710284923,0.7744,4531.5,4531.4,3.64381512]
[1759710285323,0.229,4531.5,4531.4,3.98001512]
[1759710285522,0.1303,4532.0,4531.4,3.98001512]
[1759710285820,3.92156585,4531.9,4531.8,0.2146]
[1759710286122,3.69256585,4531.9,4531.8,0.2146]
[1759710286322,3.92156585,4531.9,4531.8,0.2146]
[1759710286716,3.14486585,4531.9,4531.8,0.7703]
[1759710286917,0.229,4531.9,4531.8,0.7703]
[1759710287118,0.4379,4531.5,4531.4,3.42431512]
[1759710287421,3.92968989,4531.5,4531.4,0.00191512]
[1759710289723,38.35768989,4531.5,4531.4,0.00191512]
[1759710290035,34.7474,4531.8,4531.5,0.334]
[1759710290320,34.7474,4531.8,4531.4,3.63691512]
[1759710290321,3.90921934,4531.7,4531.6,0.2168]
[1759710290521,3.24871934,4531.7,4531.6,0.7612]
[1759710290723,0.229,4531.7,4531.6,0.7612]
[1759710291418,0.3194,4532.2,4531.6,5.7612]
[1759710291620,0.7509,4532.2,4532.1,0.2168]
[1759710291818,0.7509,4532.2,4531.4,0.00191512]
[1759710291819,0.5276,4531.5,4531.4,0.21871512]
[1759710292021,1.1055,4531.5,4531.4,0.21871512]
[1759710292719,1.1055,4531.5,4531.4,0.42911512]
[1759710292919,0.9799,4531.5,4531.4,0.76311512]
[1759710293116,0.4372,4531.5,4531.4,0.76311512]
[1759710293322,0.7509,4532.2,4532.1,0.4272]
[1759710293523,0.9799,4532.2,4532.1,3.635]
[1759710293823,3.64620998,4532.2,4532.1,3.635]
[1759710294025,0.9799,4532.2,4532.1,3.2078]
[1759710294230,0.9799,4532.2,4531.4,1.12242861]
[1759710294231,0.7509,4531.7,4531.6,3.4246]
[1759710294424,0.9799,4531.7,4531.6,3.635]
[1759710294621,0.229,4531.7,4531.6,3.635]
[1759710294930,0.7566,4531.7,4531.6,3.635]
[1759710296129,0.7566,4531.7,4531.6,3.969]
[1759710297828,0.229,4531.7,4531.6,3.969]
[1759710299226,0.5276,4531.9,4531.8,0.4272]
[1759710299528,0.9799,4531.9,4531.8,0.4272]
[1759710300225,3.52442317,4531.9,4531.6,3.2078]
[1759710300431,0.7509,4531.7,4531.6,3.2078]
[1759710300726,3.58649162,4531.7,4531.6,3.4246]
[1759710300927,2.83559162,4531.7,4531.6,3.969]
[1759710301129,0.229,4531.7,4531.6,3.969]
[1759710301629,3.81549162,4531.7,4531.6,3.635]
[1759710302131,3.81549162,4531.7,4531.6,3.4246]
[1759710302836,0.8765,4531.5,4531.4,0.00191512]
[1759710303835,6.8523374,4531.5,4531.4,0.00191512]
[1759710304832,6.8523374,4531.5,4530.6,3.99431349]
[1759710304833,0.4315,4530.7,4530.6,3.2078]
[1759710305035,1.37707,4530.7,4530.6,3.2078]